bitfinex-derivatives/quotes_BNBF0:USTF0_20250101
["timestamp","ask_amount","ask_price","bid_price","bid_amount"]
[1735743383678,0.25982834,709.06,707.87,1.04623944]
[1735743383883,0.25982834,709.05,707.87,1.04623944]
[1735743384078,0.25982834,709.04,707.87,1.04623944]
[1735743384381,0.28204766,709.1,707.87,1.04623944]
[1735743384577,0.25982921,709.09,707.87,1.04623944]
[1735743384777,0.25982921,709.09,707.88,1.04623944]
[1735743385880,0.25982097,709.08,707.9,1.04623944]
[1735743386081,0.25982097,709.07,707.9,1.04623944]
[1735743386278,0.25982097,709.06,707.9,1.04623944]
[1735743386479,0.28204766,709.1,707.9,1.04623944]
[1735743386684,0.25982214,709.09,707.9,1.04623944]
[1735743387080,0.25982214,709.09,707.94,1.04623944]
[1735743388376,1.04199792,709.03,707.99,1.04623944]
[1735743388576,0.25982384,709.02,707.99,1.04623944]
[1735743389481,0.25982384,709.02,708.07,1.04623944]
[1735743389482,1.04199792,709.0,708.07,1.04623944]
[1735743389681,0.25982384,708.99,708.07,1.04623944]
[1735743390485,1.04199792,708.97,708.09,1.04623944]
[1735743391286,0.25981494,708.96,708.09,1.04623944]
[1735743391684,1.04199792,708.93,708.16,1.04623944]
[1735743391883,0.25981122,708.92,708.16,1.04623944]
[1735743393579,1.04199792,708.93,708.16,1.04623944]
[1735743393782,0.25982097,708.92,708.16,1.04623944]
[1735743393982,1.04199792,708.93,708.16,1.04623944]
[1735743394580,1.04199792,708.9,708.15,1.04623944]
[1735743395386,1.04199792,708.93,708.15,1.04623944]
[1735743397882,1.04199792,708.95,708.15,1.04623944]
[1735743398285,0.25981433,708.94,708.15,1.04623944]
[1735743398488,1.04199792,708.95,708.15,1.04623944]
[1735743398786,0.25981404,708.94,708.15,1.04623944]
[1735743398986,1.04199792,708.94,708.14,1.04623944]
[1735743399187,0.25981404,708.93,708.14,1.04623944]
[1735743400089,1.04199792,708.93,708.16,1.04623944]
[1735743401386,1.47372804,709.06,708.13,1.04623944]
[1735743401387,1.04199792,708.98,708.13,1.04623944]
[1735743402387,1.04199792,708.97,708.14,1.04623944]
[1735743403788,1.04199792,708.98,708.14,1.04623944]
[1735743403989,0.25980974,708.97,708.14,1.04623944]
[1735743404488,1.04199792,708.98,708.14,1.04623944]
[1735743404890,1.04199792,708.97,708.14,1.04623944]
[1735743406390,1.04199792,708.97,707.55,2.41873773]
[1735743406391,1.04199792,709.0,708.11,1.04623944]
[1735743407695,1.04199792,708.99,708.11,1.04623944]
[1735743408398,1.04199792,708.99,708.12,1.04623944]
[1735743408794,0.25980666,708.98,708.12,1.04623944]
[1735743409501,1.04199792,708.99,708.12,1.04623944]
[1735743409995,1.04199792,708.98,708.14,1.04623944]
[1735743411196,1.47372804,709.06,708.08,1.04623944]
[1735743412695,1.47372804,709.06,708.09,1.04623944]
[1735743413697,1.47372804,709.06,708.08,1.04623944]
[1735743414697,1.47372804,709.06,708.05,1.04623944]
[1735743416097,1.47372804,709.06,707.67,1.04623944]
[1735743416098,1.47372804,709.06,708.06,1.04623944]
[1735743417910,0.28204766,709.1,708.07,1.04623944]
[1735743418996,0.25980181,709.09,708.04,1.04623944]
[1735743419305,0.25980213,709.08,708.04,1.04623944]
[1735743419600,0.25980213,709.07,708.04,1.04623944]
[1735743419802,0.25980213,709.06,708.04,1.04623944]
[1735743420101,0.25980213,709.05,708.04,1.04623944]
[1735743420301,0.25980213,709.04,708.04,1.04623944]
[1735743420505,0.25980213,709.03,708.12,1.04623944]
[1735743420800,1.04199792,709.05,708.12,1.04623944]
[1735743421015,0.25980628,709.04,708.12,1.04623944]
[1735743421701,1.04199792,709.02,708.12,1.04623944]
[1735743422801,1.04199792,709.02,707.92,1.04623944]
[1735743422802,0.28204766,709.1,708.03,1.04623944]
[1735743423900,0.28204766,709.1,708.05,1.04623944]
[1735743425001,0.28204766,709.1,708.06,1.04623944]
[1735743428703,0.28204766,709.1,707.56,0.72200363]
[1735743428704,0.28204766,709.1,708.08,1.04623944]
[1735743430506,0.259788,709.09,708.08,1.04623944]
[1735743430904,0.259788,709.09,707.56,0.72200363]
[1735743430905,1.32404558,709.1,708.16,1.04623944]
[1735743431101,0.25979058,709.09,708.16,1.04623944]
[1735743432006,1.3017885,709.09,708.14,1.04623944]
[1735743432207,0.25979058,709.08,708.14,1.04623944]
[1735743432606,1.04199792,709.09,708.14,1.04623944]
[1735743434001,0.28204766,709.1,708.15,1.04623944]
[1735743434402,0.25978436,709.09,708.15,1.04623944]
[1735743434606,0.28204766,709.1,708.15,1.04623944]
[1735743434806,0.259784,709.09,708.15,1.04623944]
[1735743435200,0.28204766,709.1,708.15,1.04623944]
[1735743435408,0.25978242,709.09,708.15,1.04623944]
[1735743435901,0.28204766,709.1,708.15,1.04623944]
[1735743436107,1.32404558,709.1,708.15,1.04623944]
[1735743437410,0.28204766,709.1,708.16,1.04623944]
[1735743438907,0.28204766,709.1,708.12,1.04623944]
[1735743439109,0.25980159,709.09,708.12,1.04623944]
[1735743440112,1.04199792,709.02,708.12,1.04623944]
[1735743440312,0.25980159,709.01,708.1,1.04623944]
[1735743441620,1.30179951,709.01,708.08,1.04623944]
[1735743441814,0.25980159,709.0,708.08,1.04623944]
[1735743442115,1.04199792,709.01,708.08,1.04623944]
[1735743442311,0.25983004,709.0,708.08,1.04623944]
[1735743442615,1.04199792,708.94,708.12,1.04623944]
[1735743442812,0.25983004,708.93,708.12,1.04623944]
[1735743443513,0.25983004,708.93,707.59,2.1360722]
[1735743443514,1.04199792,708.9,708.07,1.04623944]
[1735743443712,0.25983004,708.89,708.07,1.04623944]
[1735743444109,1.04199792,708.9,708.07,1.04623944]
[1735743444413,0.25983495,708.89,708.05,1.04623944]
[1735743444614,0.25983495,708.88,708.05,1.04623944]
[1735743444807,0.25983495,708.87,708.05,1.04623944]
[1735743445010,0.25983495,708.86,708.05,1.04623944]
[1735743445208,0.25983495,708.86,707.87,1.04623944]
[1735743445209,1.04199792,708.92,708.04,1.04623944]
[1735743445521,0.25982459,708.91,708.04,1.04623944]
[1735743446318,0.25982459,708.91,708.02,1.04623944]
[1735743446517,0.25982459,708.9,708.02,1.04623944]
[1735743446816,1.04199792,708.96,708.02,1.04623944]
[1735743447012,0.25983991,708.95,708.02,1.04623944]
[1735743447315,0.25983991,708.95,707.96,1.04623944]
[1735743447515,0.25983991,708.94,707.96,1.04623944]
[1735743447716,1.04199792,709.01,707.96,1.04623944]
[1735743447923,0.25983952,709.0,707.96,1.04623944]
[1735743448414,0.25983952,709.0,707.94,1.04623944]
[1735743449410,0.25984339,708.99,707.93,1.04623944]
[1735743449613,0.25984339,708.98,707.93,1.04623944]
[1735743449817,0.25984339,708.97,707.93,1.04623944]
[1735743450013,0.25984339,708.96,707.93,1.04623944]
[1735743450211,1.04199792,709.02,707.93,1.04623944]
[1735743450415,0.25984795,709.01,707.93,1.04623944]
[1735743450612,0.25984795,709.01,707.71,1.04623944]
[1735743450613,0.25984795,709.01,707.88,1.04623944]
[1735743450813,0.25984795,709.0,707.88,1.04623944]
[1735743451018,0.25984795,708.99,707.88,1.04623944]
[1735743451313,0.25984795,708.98,707.88,1.04623944]
[1735743451518,1.04199792,709.03,707.88,1.04623944]
[1735743451717,0.25983915,709.02,707.88,1.04623944]
[1735743452019,0.25983915,709.02,707.87,1.04623944]
[1735743452215,0.25983963,709.01,707.87,1.04623944]
[1735743452412,0.25983963,709.0,707.87,1.04623944]
[1735743452615,0.25983963,708.99,707.87,1.04623944]
[1735743452816,0.25983963,708.98,707.87,1.04623944]
[1735743453016,0.28204766,709.1,707.88,1.04623944]
[1735743453017,1.04199792,709.08,707.88,1.04623944]
[1735743453219,0.25984415,709.07,707.88,1.04623944]
[1735743454220,1.30184207,709.07,707.86,1.04623944]
[1735743454421,0.25984415,709.06,707.86,1.04623944]
[1735743454813,0.25984123,709.05,707.86,1.04623944]
[1735743455011,0.25984123,709.04,707.86,1.04623944]
[1735743455223,0.25984123,709.03,707.87,1.04623944]
[1735743455420,0.25984123,709.02,707.87,1.04623944]
[1735743455623,0.25984123,709.01,707.87,1.04623944]
[1735743455820,0.25984123,709.0,707.87,1.04623944]
[1735743456021,0.25984123,708.99,707.87,1.04623944]
[1735743456216,1.04199792,709.08,707.87,1.04623944]
[1735743456217,0.25984123,708.98,707.87,1.04623944]
[1735743456423,0.25984123,708.97,707.88,1.04623944]
[1735743456723,0.25984123,708.96,707.88,1.04623944]
[1735743456922,0.25984123,708.95,707.88,1.04623944]
[1735743457225,1.04199792,709.07,707.88,1.04623944]
[1735743457226,0.25984123,708.94,707.88,1.04623944]
[1735743457422,0.25984123,709.06,707.88,1.04623944]
[1735743457626,0.25984123,709.05,707.88,1.04623944]
[1735743457824,0.25984123,709.04,707.92,1.04623944]
[1735743458023,1.04199792,709.05,707.92,1.04623944]
[1735743458218,0.25984169,709.04,707.92,1.04623944]
[1735743459018,1.30183961,709.04,707.91,1.04623944]
[1735743459229,0.25984169,709.03,707.91,1.04623944]
[1735743460126,1.04199792,709.03,707.92,1.04623944]
[1735743460328,0.25984277,709.02,707.92,1.04623944]
[1735743461027,1.04199792,708.99,707.95,1.04623944]
[1735743462330,0.28204766,709.1,707.93,1.04623944]
[1735743463530,0.28204766,709.1,707.95,1.04623944]
[1735743464334,0.25981444,709.09,707.95,1.04623944]
[1735743464830,0.25981444,709.09,707.91,1.04623944]
[1735743465328,0.28204766,709.1,707.91,1.04623944]
[1735743465530,0.25982162,709.09,707.91,1.04623944]
[1735743465730,1.30181954,709.09,707.99,1.04623944]
[1735743465932,0.25982162,709.08,707.99,1.04623944]
[1735743466127,0.25981952,709.07,707.99,1.04623944]
[1735743466430,0.25981952,709.06,707.99,1.04623944]
[1735743466631,0.25981952,709.05,707.99,1.04623944]
[1735743466832,0.25981952,709.04,707.99,1.04623944]
[1735743467131,0.25981952,709.03,707.99,1.04623944]
[1735743467331,0.25981952,709.02,707.99,1.04623944]
[1735743467532,0.25981952,709.01,707.99,1.04623944]
[1735743467832,1.04199792,709.08,708.0,1.04623944]
[1735743469127,0.28204766,709.1,707.7,1.04623944]
[1735743470133,0.28204766,709.1,707.73,1.04623944]
[1735743471134,0.28204766,709.1,707.78,1.04623944]
[1735743472437,0.28204766,709.1,707.8,1.04623944]
[1735743474738,0.28204766,709.1,707.72,1.04623944]
[1735743474937,0.28204766,709.1,707.73,0.28259364]
[1735743479139,0.28204766,709.1,707.8,1.04623944]
[1735743480439,0.28204766,709.1,707.77,1.04623944]
[1735743482636,0.28204766,709.1,707.79,1.04623944]
[1735743483442,0.25984018,709.09,707.79,1.04623944]
[1735743485037,0.25984018,709.09,707.92,1.04623944]
[1735743485038,1.3018381,709.09,707.92,1.04623944]
[1735743485244,0.25984018,709.08,707.92,1.04623944]
[1735743485839,1.04199792,709.09,707.92,1.04623944]
[1735743486045,0.25984078,709.08,707.92,1.04623944]
[1735743486246,1.04199792,709.06,707.9,1.04623944]
[1735743486443,0.25984078,709.05,707.9,1.04623944]
[1735743487145,1.04199792,709.03,707.93,1.04623944]
[1735743487346,0.25984078,709.02,707.93,1.04623944]
[1735743488348,0.25984078,709.01,707.93,1.04623944]
[1735743488548,0.25984721,709.0,707.93,1.04623944]
[1735743488743,1.04199792,709.04,707.93,1.04623944]
[1735743489042,0.25984603,709.03,707.93,1.04623944]
[1735743489242,0.2598434,709.02,707.93,1.04623944]
[1735743489444,0.28204766,709.1,707.88,1.04623944]
[1735743489445,0.2598434,709.01,707.88,1.04623944]
[1735743489645,0.2598434,709.0,707.88,1.04623944]
[1735743489846,0.2598434,708.99,707.88,1.04623944]
[1735743490042,1.04199792,709.03,707.88,1.04623944]
[1735743490245,0.25984864,709.02,707.88,1.04623944]
[1735743490448,1.04199792,709.03,707.9,1.04623944]
[1735743490747,1.04199792,709.02,707.9,1.04623944]
[1735743491749,1.04199792,709.07,707.73,0.28259364]
[1735743492348,0.28206357,709.06,707.73,0.28259364]
[1735743494249,0.25990709,709.05,707.73,0.28259364]
[1735743494446,0.28206357,709.06,707.73,0.28259364]
[1735743495148,0.25990853,709.05,707.73,0.28259364]
[1735743495551,0.28207153,709.04,707.73,0.28259364]
[1735743498352,0.25989401,709.03,707.73,0.28259364]
[1735743498652,0.28207153,709.04,707.73,0.28259364]
[1735743499255,0.25987789,709.03,707.73,0.28259364]
[1735743501753,0.25986946,709.02,707.73,0.28259364]
[1735743501958,0.25986946,709.01,707.73,0.28259364]
[1735743502159,0.25986946,709.0,707.73,0.28259364]
[1735743502359,0.25986946,708.99,707.73,0.28259364]
[1735743502554,0.25986946,708.98,707.73,0.28259364]
[1735743502755,0.28207153,709.04,707.73,0.28259364]
[1735743503054,0.2598642,709.03,707.73,0.28259364]
[1735743504460,0.25986707,709.02,707.73,0.28259364]
[1735743504655,0.25986707,709.01,707.73,0.28259364]
[1735743504854,0.25986707,709.0,707.73,0.28259364]
[1735743505055,0.25986707,708.99,707.73,0.28259364]
[1735743505358,0.25986707,708.98,707.73,0.28259364]
[1735743505559,0.28207153,709.04,707.73,0.28259364]
[1735743505759,0.51972515,709.03,707.73,0.28259364]
[1735743505960,0.25986322,709.02,707.73,0.28259364]
[1735743506962,0.25986322,709.02,707.74,1.04623944]
[1735743507257,0.25987741,709.01,707.74,1.04623944]
[1735743507461,0.25987741,709.0,707.74,1.04623944]
[1735743507762,0.25987741,708.99,707.74,1.04623944]
[1735743507959,0.25987741,708.98,707.75,1.04623944]
[1735743508159,0.25987741,708.97,707.75,1.04623944]
[1735743508360,0.25987741,708.96,707.75,1.04623944]
[1735743508562,0.25987741,708.95,707.75,1.04623944]
[1735743508762,0.25987741,708.94,707.75,1.04623944]
[1735743508963,0.25987741,708.93,707.75,1.04623944]
[1735743509165,0.25987741,708.92,707.75,1.04623944]
[1735743509365,0.25987741,708.91,707.76,1.04623944]
[1735743509566,0.25987741,708.9,707.76,1.04623944]
[1735743509766,1.04199792,709.01,707.76,1.04623944]
[1735743509966,0.2598612,709.0,707.76,1.04623944]
[1735743510266,0.2598612,709.0,707.81,1.04623944]
[1735743510466,0.2598612,708.99,707.81,1.04623944]
[1735743510669,0.2598612,708.98,707.81,1.04623944]
[1735743510867,0.2598612,708.97,707.81,1.04623944]
[1735743511066,0.2598612,708.96,707.81,1.04623944]
[1735743511263,0.2598612,708.95,707.85,1.04623944]
[1735743511468,0.2598612,708.94,707.85,1.04623944]
[1735743511771,0.2598612,708.93,707.85,1.04623944]
[1735743511969,0.2598612,708.92,707.85,1.04623944]
[1735743512163,0.2598612,708.91,707.85,1.04623944]
[1735743512363,1.04199792,709.02,707.85,1.04623944]
[1735743512570,1.30185377,709.01,707.87,1.04623944]
[1735743512869,0.25985585,709.0,707.87,1.04623944]
[1735743513070,1.04199792,709.01,707.87,1.04623944]
[1735743513264,0.25985312,709.0,707.87,1.04623944]
[1735743514566,1.30185104,709.0,707.86,1.04623944]
[1735743514871,0.25985312,708.99,707.86,1.04623944]
[1735743515669,1.04199792,708.9,707.89,1.04623944]
[1735743515870,0.25985312,708.89,707.89,1.04623944]
[1735743516764,1.04199792,708.87,707.86,1.04623944]
[1735743516964,0.25985312,708.86,707.86,1.04623944]
[1735743517672,1.3018939,708.85,707.85,1.04623944]
[1735743517875,0.25989598,708.84,707.85,1.04623944]
[1735743519076,0.25989598,708.84,707.84,1.04623944]
[1735743520272,1.04199792,708.85,707.81,1.04623944]
[1735743520471,0.25989543,708.84,707.81,1.04623944]
[1735743521673,0.25989543,708.84,707.83,1.04623944]
[1735743521872,0.25989063,708.83,707.83,1.04623944]
[1735743522075,0.25989063,708.82,707.83,1.04623944]
[1735743522267,1.04199792,708.86,707.83,1.04623944]
[1735743522773,1.04199792,708.84,707.84,1.04623944]
[1735743522973,0.25988891,708.83,707.84,1.04623944]
[1735743523670,1.04199792,708.84,707.84,1.04623944]
[1735743523874,0.25989053,708.83,707.84,1.04623944]
[1735743524171,0.25989053,708.83,707.85,1.04623944]
[1735743525175,1.04199792,708.81,707.86,1.04623944]
[1735743525474,0.25989053,708.8,707.86,1.04623944]
[1735743526274,1.04199792,708.81,707.86,1.04623944]
[1735743526473,0.25988486,708.8,707.86,1.04623944]
[1735743526677,0.25988486,708.8,707.89,1.04623944]
[1735743526872,0.25988486,708.79,707.89,1.04623944]
[1735743527076,0.25988486,708.78,707.89,1.04623944]
[1735743527277,0.25988486,708.77,707.89,1.04623944]
[1735743527476,0.25988486,708.76,707.89,1.04623944]
[1735743527672,0.25988486,708.75,707.89,1.04623944]
[1735743527977,0.25988486,708.74,707.89,1.04623944]
[1735743528181,0.25988486,708.73,707.89,1.04623944]
[1735743528377,1.04199792,708.8,707.9,1.04623944]
[1735743528577,0.25988393,708.79,707.9,1.04623944]
[1735743528975,0.25988718,708.78,707.9,1.04623944]
[1735743529179,0.25988718,708.78,707.73,0.28259364]
[1735743529180,0.25988718,708.77,707.88,1.04623944]
[1735743529378,0.25988718,708.76,707.88,1.04623944]
[1735743529581,1.04199792,708.84,707.88,1.04623944]
[1735743529783,0.25988416,708.83,707.88,1.04623944]
[1735743529979,0.25988416,708.83,707.89,1.04623944]
[1735743529980,1.30188208,708.83,707.89,1.04623944]
[1735743530181,0.25988416,708.82,707.89,1.04623944]
[1735743531080,0.25988416,708.82,707.73,0.28259364]
[1735743531081,1.30188208,708.82,707.88,1.04623944]
[1735743531275,0.25988416,708.81,707.88,1.04623944]
[1735743531784,1.04199792,708.82,707.88,1.04623944]
[1735743531785,0.25989026,708.8,707.88,1.04623944]
[1735743531984,0.25989026,708.79,707.88,1.04623944]
[1735743532178,1.04199792,708.82,707.88,1.04623944]
[1735743532179,0.25989026,708.78,707.88,1.04623944]
[1735743532378,1.04199792,708.82,707.88,1.04623944]
[1735743532581,0.25988637,708.81,707.88,1.04623944]
[1735743533784,0.25988637,708.8,707.88,1.04623944]
[1735743533984,1.04199792,708.84,707.88,1.04623944]
[1735743534186,0.2598843,708.83,707.88,1.04623944]
[1735743536185,1.30188222,708.83,707.87,1.04623944]
[1735743536480,0.2598843,708.82,707.87,1.04623944]
[1735743536986,0.25989335,708.81,707.87,1.04623944]
[1735743537287,1.04199792,708.83,707.87,1.04623944]
[1735743537485,1.04199792,708.83,707.84,1.04623944]
[1735743537486,0.25989234,708.82,707.84,1.04623944]
[1735743538490,1.30189026,708.82,707.83,1.04623944]
[1735743538698,0.25989234,708.81,707.83,1.04623944]
[1735743539788,0.25989818,708.8,707.83,1.04623944]
[1735743539988,0.25989818,708.79,707.84,1.04623944]
[1735743540289,0.25989818,708.78,707.84,1.04623944]
[1735743540490,0.25989818,708.77,707.84,1.04623944]
[1735743540789,0.25989818,708.76,707.85,1.04623944]
[1735743540989,1.04199792,708.8,707.85,1.04623944]
[1735743541198,0.25989688,708.79,707.85,1.04623944]
[1735743541589,0.25991099,708.78,707.85,1.04623944]
[1735743541789,0.25991099,708.77,707.85,1.04623944]
[1735743541990,0.25991099,708.76,707.85,1.04623944]
[1735743542290,0.25993044,708.75,707.85,1.04623944]
[1735743542490,0.25993044,708.74,707.85,1.04623944]
[1735743542691,0.25993044,708.73,707.85,1.04623944]
[1735743542893,0.25993044,708.72,707.85,1.04623944]
[1735743543196,0.25993044,708.71,707.85,1.04623944]
[1735743543391,0.25993044,708.7,707.73,0.28259364]
[1735743543592,1.04199792,708.76,707.73,0.28259364]
[1735743543793,0.25993876,708.75,707.73,0.28259364]
[1735743544195,0.25993914,708.74,707.73,0.28259364]
[1735743544491,0.25993914,708.73,707.73,0.28259364]
[1735743544693,0.25993914,708.72,707.73,0.28259364]
[1735743544896,0.25993736,708.71,707.73,0.28259364]
[1735743545194,1.04199792,708.77,707.73,0.28259364]
[1735743545394,0.25993608,708.76,707.73,0.28259364]
[1735743545796,0.25993608,708.75,707.73,0.28259364]
[1735743545993,0.25993608,708.74,707.73,0.28259364]
[1735743546194,0.25993608,708.73,707.73,0.28259364]
[1735743546395,0.25993608,708.72,707.73,0.28259364]
[1735743546599,0.25993608,708.71,707.73,0.28259364]
[1735743546804,1.04199792,708.79,707.73,0.28259364]
[1735743547095,1.30195385,708.78,707.73,0.28259364]
[1735743547301,0.25995593,708.77,707.73,0.28259364]
[1735743547799,0.25995593,708.77,707.64,1.04623944]
[1735743548300,1.04199792,708.76,707.59,1.04623944]
[1735743548502,0.25995593,708.75,707.59,1.04623944]
[1735743549104,0.25995593,708.75,707.6,1.04623944]
[1735743549599,0.25994713,708.74,707.6,1.04623944]
[1735743549794,0.25994713,708.73,707.6,1.04623944]
[1735743550000,0.25994713,708.72,707.63,1.04623944]
[1735743550301,0.25994713,708.71,707.63,1.04623944]
[1735743550503,0.25994713,708.7,707.63,1.04623944]
[1735743550802,0.25994713,708.69,707.63,1.04623944]
[1735743550997,0.25994713,708.68,707.63,1.04623944]
[1735743551197,1.04199792,708.76,707.61,1.04623944]
[1735743551198,0.25994713,708.67,707.61,1.04623944]
[1735743551400,0.25994713,708.66,707.61,1.04623944]
[1735743551700,0.25994713,708.65,707.61,1.04623944]
[1735743551900,0.25994713,708.64,707.61,1.04623944]
[1735743552101,0.25995794,708.63,707.59,1.04623944]
[1735743552399,0.25995038,708.62,707.59,1.04623944]
[1735743552600,1.04199792,708.75,707.59,1.04623944]
[1735743553096,0.25995132,708.74,707.59,1.04623944]
[1735743553399,0.25995132,708.74,707.61,1.04623944]
[1735743553601,0.25995132,708.73,707.61,1.04623944]
[1735743553801,0.25995132,708.72,707.61,1.04623944]
[1735743554022,0.25995132,708.71,707.61,1.04623944]
[1735743554201,1.04199792,708.76,707.61,1.04623944]
[1735743554405,0.25995213,708.75,707.56,1.04623944]
[1735743554602,0.25995213,708.74,707.56,1.04623944]
[1735743554801,1.04199792,708.84,707.56,1.04623944]
[1735743555004,0.54210874,708.83,707.56,1.04623944]
[1735743555304,0.54210874,708.83,707.31,1.04623944]
[1735743555305,0.54211272,708.82,707.52,1.04623944]
[1735743555503,0.5421167,708.81,707.52,1.04623944]
[1735743555706,0.54212068,708.8,707.52,1.04623944]
[1735743556074,0.25995364,708.79,707.52,1.04623944]
[1735743556503,0.25995364,708.79,707.53,1.04623944]
[1735743557905,0.25995364,708.79,707.58,1.04623944]
[1735743559111,0.25995364,708.79,707.62,1.04623944]
[1735743560101,0.25995364,708.79,707.63,1.04623944]
[1735743560709,0.28216704,708.8,707.63,1.04623944]
[1735743560909,0.25992075,708.79,707.63,1.04623944]
[1735743562306,0.25992075,708.79,707.65,1.04623944]
[1735743562803,0.28216704,708.8,707.65,1.04623944]
[1735743563109,0.25991967,708.79,707.65,1.04623944]
[1735743563504,0.25991967,708.79,707.64,1.04623944]
[1735743564707,1.04199792,708.76,707.7,1.04623944]
[1735743565009,0.25991967,708.75,707.7,1.04623944]
[1735743565408,1.04199792,708.76,707.7,1.04623944]
[1735743565609,0.25994481,708.75,707.7,1.04623944]
[1735743566007,1.04199792,708.74,707.65,1.04623944]
[1735743566210,0.25994481,708.73,707.65,1.04623944]
[1735743567005,0.25994481,708.73,707.69,1.04623944]
[1735743567208,0.25994481,708.72,707.69,1.04623944]
[1735743567408,0.25994481,708.71,707.69,1.04623944]
[1735743567611,0.25994481,708.7,707.69,1.04623944]
[1735743567911,0.25994481,708.69,707.74,1.04623944]
[1735743568113,0.25991944,708.68,707.74,1.04623944]
[1735743568317,0.25991944,708.67,707.74,1.04623944]
[1735743568510,0.25991944,708.66,707.74,1.04623944]
[1735743568705,0.25991944,708.65,707.74,1.04623944]
[1735743569011,0.25991944,708.64,707.75,1.04623944]
[1735743569210,1.04199792,708.77,707.75,1.04623944]
[1735743569412,0.25992312,708.76,707.75,1.04623944]
[1735743569913,1.04199792,708.75,707.75,1.04623944]
[1735743570109,0.25992312,708.74,707.75,1.04623944]
[1735743570911,0.25993231,708.73,707.75,1.04623944]
[1735743571113,1.04199792,708.71,707.74,1.04623944]
[1735743571313,0.25993231,708.7,707.74,1.04623944]
[1735743572311,0.25993231,708.7,707.79,1.04623944]
[1735743572610,0.25993231,708.69,707.79,1.04623944]
[1735743572811,0.25993231,708.68,707.79,1.04623944]
[1735743573007,0.25993231,708.67,707.79,1.04623944]
[1735743573208,0.25993231,708.66,707.8,1.04623944]
[1735743573415,0.25993231,708.65,707.8,1.04623944]
[1735743573706,0.25993231,708.64,707.8,1.04623944]
[1735743573909,0.25993231,708.63,707.8,1.04623944]
[1735743574106,0.25993231,708.62,707.8,1.04623944]
[1735743574320,0.25993231,708.61,707.8,1.04623944]
[1735743574508,1.04199792,708.68,707.8,1.04623944]
[1735743574708,0.25992853,708.67,707.8,1.04623944]
[1735743574908,0.25992853,708.67,707.62,1.04623944]
[1735743574909,1.04199792,708.66,707.81,1.04623944]
[1735743575109,0.25992853,708.65,707.81,1.04623944]
[1735743576211,0.25992902,708.64,707.8,1.04623944]
[1735743576813,0.25992735,708.63,707.8,1.04623944]
[1735743577006,0.25992735,708.62,707.8,1.04623944]
[1735743577211,0.25992735,708.61,707.8,1.04623944]
[1735743577424,1.04199792,708.65,707.8,1.04623944]
[1735743577714,1.04199792,708.65,707.27,2.1360722]
[1735743577715,0.25992695,708.64,707.83,1.04623944]
[1735743578514,0.25992695,708.64,707.84,1.04623944]
[1735743578815,0.25992695,708.63,707.84,1.04623944]
[1735743579010,0.25992695,708.62,707.84,1.04623944]
[1735743579212,0.25992695,708.61,707.84,1.04623944]
[1735743579409,1.04199792,708.66,707.84,1.04623944]
[1735743579608,0.2599288,708.65,707.84,1.04623944]
[1735743579811,1.30192672,708.65,707.82,1.04623944]
[1735743580009,0.2599288,708.64,707.82,1.04623944]
[1735743581015,0.2599288,708.64,707.84,1.04623944]
[1735743581215,0.2599288,708.63,707.84,1.04623944]
[1735743581416,0.2599288,708.62,707.84,1.04623944]
[1735743581616,0.25992457,708.61,707.84,1.04623944]
[1735743581917,1.04199792,708.67,707.84,1.04623944]
[1735743582216,1.04199792,708.66,707.83,1.04623944]
[1735743583215,1.04199792,708.73,707.75,1.04623944]
[1735743583416,0.25992727,708.72,707.75,1.04623944]
[1735743584316,0.25993933,708.71,707.75,1.04623944]
[1735743584517,0.25993933,708.7,707.75,1.04623944]
[1735743584817,0.25993933,708.69,707.73,1.04623944]
[1735743585017,0.25994188,708.68,707.73,1.04623944]
[1735743585317,1.04199792,708.7,707.73,1.04623944]
[1735743585517,0.25994516,708.69,707.73,1.04623944]
[1735743586119,1.04199792,708.68,707.7,1.04623944]
[1735743586415,0.25994516,708.67,707.7,1.04623944]
[1735743587013,0.25995262,708.66,707.7,1.04623944]
[1735743587318,1.04199792,708.68,707.7,1.04623944]
[1735743587521,1.30194832,708.67,707.69,1.04623944]
[1735743587718,0.2599504,708.66,707.69,1.04623944]
[1735743588622,1.30194832,708.66,707.7,1.04623944]
[1735743588821,0.2599504,708.65,707.7,1.04623944]
[1735743589120,1.04199792,708.66,707.7,1.04623944]
[1735743589817,1.04199792,708.67,707.7,1.04623944]
[1735743590321,0.25994396,708.66,707.7,1.04623944]
[1735743590517,1.04199792,708.67,707.7,1.04623944]
[1735743591023,1.04199792,708.68,707.71,1.04623944]
[1735743591227,0.2599564,708.67,707.71,1.04623944]
[1735743592316,0.2599564,708.67,707.38,1.04623944]
[1735743592317,0.25995631,708.66,707.66,1.04623944]
[1735743593325,1.04199792,708.63,707.66,1.04623944]
[1735743593623,0.25995631,708.62,707.66,1.04623944]
[1735743594124,0.25997008,708.61,707.66,1.04623944]
[1735743594322,0.25997008,708.6,707.66,1.04623944]
[1735743594519,0.25997008,708.59,707.62,1.04623944]
[1735743594723,1.04199792,708.63,707.62,1.04623944]
[1735743594918,0.25997095,708.62,707.62,1.04623944]
[1735743595125,1.04199792,708.63,707.62,1.04623944]
[1735743595126,0.25997178,708.61,707.62,1.04623944]
[1735743595324,0.25997178,708.6,707.62,1.04623944]
[1735743595526,1.04199792,708.63,707.62,1.04623944]
[1735743597327,1.04199792,708.71,707.39,1.04623944]